bitfinex/quotes_BTCUSD_20221001
["timestamp","ask_amount","ask_price","bid_price","bid_amount"]
[1664647487508,0.80838824,19277.0,19276.0,0.24906026]
[1664647487770,0.071684,19277.0,19276.0,0.24906026]
[1664647491049,0.45018224,19277.0,19276.0,0.24906026]
[1664647491277,1.93900646,19277.0,19276.0,0.24906026]
[1664647491489,2.03416713,19277.0,19276.0,0.24906026]
[1664647491935,2.0747085,19277.0,19276.0,0.24906026]
[1664647492442,2.22065112,19277.0,19276.0,0.24906026]
[1664647492611,2.18010975,19277.0,19276.0,0.24906026]
[1664647492836,2.26129799,19277.0,19276.0,0.24906026]
[1664647493017,2.18010975,19277.0,19276.0,0.24906026]
[1664647493501,2.14897918,19277.0,19276.0,0.24906026]
[1664647493718,2.09497918,19277.0,19276.0,0.24906026]
[1664647494120,2.07466287,19277.0,19276.0,0.11927126]
[1664647494309,2.12766287,19277.0,19276.0,0.11927126]
[1664647494519,0.04328383,19276.0,19275.0,0.36]
[1664647494749,1.47178267,19276.0,19275.0,0.26]
[1664647494962,1.47178267,19276.0,19275.0,0.25844285]
[1664647494963,1.87058872,19276.0,19275.0,0.25844285]
[1664647495209,1.83009298,19276.0,19275.0,0.25844285]
[1664647496035,1.83749298,19276.0,19275.0,0.25844285]
[1664647496264,2.35627198,19276.0,19275.0,0.25844285]
[1664647496490,2.44776772,19276.0,19275.0,0.25844285]
[1664647496939,2.50084621,19276.0,19275.0,0.25844285]
[1664647497165,2.46035047,19276.0,19275.0,0.25844285]
[1664647497608,2.40935047,19276.0,19275.0,0.25844285]
[1664647498483,2.45935047,19276.0,19275.0,0.25844285]
[1664647499561,2.40935047,19276.0,19275.0,0.25844285]
[1664647500435,2.49984621,19276.0,19275.0,0.25844285]
[1664647500651,3.47901982,19276.0,19275.0,0.25844285]
[1664647500864,0.09328383,19272.0,19271.0,0.1]
[1664647501235,0.04328383,19270.0,19269.0,0.0031]
[1664647501465,1.13904304,19270.0,19269.0,0.0031]
[1664647501693,1.79724904,19270.0,19269.0,0.0031]
[1664647501919,1.88388698,19270.0,19269.0,0.0031]
[1664647503113,1.89128698,19270.0,19269.0,0.0031]
[1664647503789,1.97551172,19270.0,19269.0,0.0031]
[1664647504019,2.02551172,19270.0,19269.0,0.0031]
[1664647504244,1.99438115,19270.0,19269.0,0.0031]
[1664647504534,2.60888115,19270.0,19269.0,0.0031]
[1664647505290,0.63878383,19268.0,19267.0,0.002]
[1664647505506,2.2803394,19268.0,19267.0,0.002]
[1664647505721,2.2803394,19268.0,19267.0,0.007]
[1664647506176,2.2303394,19268.0,19267.0,0.007]
[1664647506429,2.79414358,19268.0,19267.0,0.007]
[1664647506607,3.24018763,19268.0,19267.0,0.007]
[1664647507077,2.37989737,19268.0,19267.0,0.007]
[1664647507286,2.03666617,19268.0,19267.0,0.007]
[1664647507584,1.84982812,19268.0,19267.0,0.007]
[1664647508416,1.89282812,19268.0,19267.0,0.007]
[1664647509155,1.89282812,19268.0,19267.0,0.10273072]
[1664647509803,1.84982812,19268.0,19267.0,0.10273072]
[1664647510030,2.12563103,19268.0,19267.0,0.10273072]
[1664647510478,1.83143944,19268.0,19267.0,0.10273072]
[1664647510723,0.85843368,19268.0,19267.0,0.10273072]
[1664647510948,3.64476484,19268.0,19267.0,0.10273072]
[1664647511629,3.59876484,19268.0,19267.0,0.10273072]
[1664647511853,0.13550372,19272.0,19268.0,0.8]
[1664647512086,0.13550372,19272.0,19269.0,0.358206]
[1664647512087,0.04328383,19270.0,19269.0,0.358206]
[1664647512311,0.04328383,19266.0,19265.0,0.002]
[1664647512558,1.51793653,19266.0,19265.0,0.002]
[1664647512776,2.63117694,19266.0,19265.0,0.002]
[1664647512997,2.27285794,19266.0,19265.0,0.002]
[1664647513213,2.98544664,19266.0,19265.0,0.002]
[1664647513438,2.93117694,19266.0,19265.0,0.002]
[1664647513665,2.19639202,19266.0,19265.0,0.002]
[1664647513964,2.67692929,19266.0,19265.0,0.002]
[1664647514175,2.71544102,19266.0,19265.0,0.252]
[1664647514397,2.02102859,19266.0,19265.0,0.252]
[1664647514830,1.64662027,19266.0,19265.0,0.252]
[1664647515281,2.02081101,19266.0,19265.0,0.252]
[1664647515502,2.02081095,19266.0,19265.0,0.002]
[1664647515731,2.2651336,19266.0,19265.0,0.002]
[1664647515948,1.89094294,19266.0,19265.0,0.002]
[1664647516385,1.93494294,19266.0,19265.0,0.002]
[1664647517786,1.89094294,19266.0,19265.0,0.002]
[1664647518455,1.93494294,19266.0,19265.0,0.002]
[1664647519132,4.38034592,19266.0,19265.0,0.002]
[1664647519355,4.38774592,19266.0,19265.0,0.002]
[1664647519583,4.78221761,19266.0,19265.0,0.002]
[1664647519806,5.15662593,19266.0,19265.0,0.002]
[1664647520033,4.78221761,19266.0,19265.0,0.002]
[1664647520272,1.9514483,19266.0,19265.0,0.002]
[1664647520495,1.9514483,19266.0,19263.0,0.0031]
[1664647520496,0.04328383,19264.0,19263.0,0.0031]
[1664647520730,2.18592832,19264.0,19263.0,0.0031]
[1664647520952,2.01221956,19264.0,19263.0,0.0031]
[1664647522546,2.01221956,19264.0,19262.0,0.0011]
[1664647522547,0.27104071,19263.0,19262.0,0.0011]
[1664647522825,2.02412143,19263.0,19262.0,0.0011]
[1664647523476,2.055252,19263.0,19262.0,0.0011]
[1664647524133,0.04328383,19260.0,19259.0,0.0104]
[1664647524354,0.40160283,19260.0,19259.0,0.0104]
[1664647524587,0.40160283,19260.0,19259.0,0.0154]
[1664647524588,0.04328383,19260.0,19259.0,0.0154]
[1664647525993,0.7598546,19260.0,19259.0,0.0154]
[1664647526202,0.7598546,19260.0,19259.0,0.0081]
[1664647526203,1.8750247,19260.0,19259.0,0.0081]
[1664647526427,1.71218537,19260.0,19259.0,0.0081]
[1664647526929,2.25768537,19260.0,19259.0,0.0081]
[1664647527157,2.33881594,19260.0,19259.0,0.0081]
[1664647527379,2.28881594,19260.0,19259.0,0.0081]
[1664647527595,2.29681594,19260.0,19259.0,0.0081]
[1664647527841,2.34681594,19260.0,19259.0,0.0081]
[1664647528066,2.34681594,19260.0,19258.0,0.0031]
[1664647528067,0.04328383,19259.0,19258.0,0.0031]
[1664647528276,1.8344653,19259.0,19258.0,0.0031]
[1664647530559,1.8724653,19259.0,19258.0,0.0031]
[1664647531241,1.49899966,19259.0,19258.0,0.0031]
[1664647531597,1.46099966,19259.0,19258.0,0.0031]
[1664647531824,0.92073427,19259.0,19258.0,0.0031]
[1664647532287,0.358319,19259.0,19258.0,0.1141]
[1664647532503,0.038,19259.0,19258.0,0.1141]
[1664647532673,0.038,19259.0,19258.0,0.472419]
[1664647533003,0.038,19259.0,19258.0,0.1141]
[1664647533004,0.06505414,19259.0,19258.0,0.1141]
[1664647533778,0.02705414,19259.0,19258.0,0.547349]
[1664647534002,0.02705414,19259.0,19258.0,0.18903]
[1664647534480,0.07305414,19259.0,19258.0,0.13301]
[1664647534915,0.07305414,19259.0,19258.0,0.1596131]
[1664647535139,0.07305414,19259.0,19258.0,0.5179321]
[1664647535364,0.06805414,19259.0,19258.0,0.5179321]
[1664647535578,0.02205414,19259.0,19258.0,0.491329]
[1664647535795,0.02205414,19259.0,19258.0,0.13301]
[1664647536453,0.45737314,19259.0,19258.0,0.0031]
[1664647536666,0.10905414,19259.0,19258.0,0.0031]
[1664647536887,0.47827855,19259.0,19258.0,0.0031]
[1664647537113,0.46324338,19259.0,19258.0,0.0031]
[1664647537348,0.82156238,19259.0,19258.0,0.0031]
[1664647537557,1.34844046,19259.0,19258.0,0.0031]
[1664647537787,0.89797482,19259.0,19258.0,0.0031]
[1664647538482,0.94797482,19259.0,19258.0,0.0031]
[1664647538707,1.30629382,19259.0,19258.0,0.0031]
[1664647539134,0.94797482,19259.0,19258.0,0.0031]
[1664647539828,0.89797482,19259.0,19258.0,0.0031]
[1664647540506,0.94797482,19259.0,19258.0,0.0031]
[1664647540746,1.30629382,19259.0,19258.0,0.0031]
[1664647540976,0.94797482,19259.0,19258.0,0.0031]
[1664647542101,0.89797482,19259.0,19258.0,0.0031]
[1664647542547,0.94997482,19259.0,19258.0,0.0031]
[1664647543265,1.30829382,19259.0,19258.0,0.0031]
[1664647543498,1.30829382,19259.0,19258.0,0.1141]
[1664647543499,0.63906941,19259.0,19258.0,0.1141]
[1664647543722,0.63906941,19259.0,19258.0,0.0031]
[1664647543944,0.58706941,19259.0,19258.0,0.0031]
[1664647544645,0.93906941,19259.0,19258.0,0.0031]
[1664647545212,1.67085405,19259.0,19258.0,0.0031]
[1664647545431,1.87688126,19259.0,19258.0,0.0031]
[1664647545710,1.82488126,19259.0,19258.0,0.0031]
[1664647545941,1.83228126,19259.0,19258.0,0.0031]
[1664647546168,1.47396226,19259.0,19258.0,0.0031]
[1664647546388,1.83228126,19259.0,19258.0,0.0031]
[1664647546614,1.51596226,19259.0,19258.0,0.0031]
[1664647546838,1.87428126,19259.0,19258.0,0.0031]
[1664647547067,1.95853482,19259.0,19258.0,0.0031]
[1664647547304,1.60021582,19259.0,19258.0,0.0031]
[1664647547537,1.95853482,19259.0,19258.0,0.0031]
[1664647548229,4.44931007,19259.0,19258.0,0.0031]
[1664647548461,4.48831007,19259.0,19258.0,0.0031]
[1664647548713,1.95553482,19259.0,19258.0,0.0031]
[1664647548893,1.13949662,19259.0,19258.0,0.0031]
[1664647549133,1.49781562,19259.0,19258.0,0.0031]
[1664647549610,0.83209662,19259.0,19258.0,0.0031]
[1664647549835,0.58706941,19259.0,19258.0,0.0031]
[1664647550294,0.94538841,19259.0,19258.0,0.0031]
[1664647550513,0.98438841,19259.0,19258.0,0.0031]
[1664647550732,0.62606941,19259.0,19258.0,0.0031]
[1664647550976,0.98438841,19259.0,19258.0,0.1141]
[1664647551208,0.62606941,19259.0,19258.0,0.0031]
[1664647551436,1.08593715,19259.0,19258.0,0.0031]
[1664647551655,1.04693715,19259.0,19258.0,0.0031]
[1664647552391,0.98861815,19259.0,19258.0,0.0031]
[1664647552620,1.41008379,19259.0,19258.0,0.0031]
[1664647552847,1.41748379,19259.0,19258.0,0.0031]
[1664647553079,1.77580279,19259.0,19258.0,0.0031]
[1664647553820,1.72780279,19259.0,19258.0,0.0031]
[1664647554493,1.77580279,19259.0,19258.0,0.0031]
[1664647555150,1.35905332,19259.0,19258.0,0.0031]
[1664647555393,1.77580279,19259.0,19258.0,0.0031]
[1664647555837,1.72780279,19259.0,19258.0,0.0031]
[1664647556552,1.77580279,19259.0,19258.0,0.0031]
[1664647556978,1.76840279,19259.0,19258.0,0.0031]
[1664647557677,1.72040279,19259.0,19258.0,0.0031]
[1664647558416,1.72040279,19259.0,19258.0,0.00303962]
[1664647558649,1.79953336,19259.0,19258.0,0.00303962]
[1664647559186,1.85265762,19259.0,19258.0,0.00303962]
[1664647559766,1.86005762,19259.0,19258.0,0.00303962]
[1664647559977,1.78092705,19259.0,19258.0,0.00303962]
[1664647560696,1.82892705,19259.0,19258.0,0.00303962]
[1664647561651,1.09714241,19259.0,19258.0,0.00303962]
[1664647561877,1.04914241,19259.0,19258.0,0.00303962]
[1664647562106,0.99601815,19259.0,19258.0,0.00303962]
[1664647562330,1.35433715,19259.0,19258.0,0.00303962]
[1664647562813,1.40233715,19259.0,19258.0,0.00303962]
[1664647563264,1.77580279,19259.0,19258.0,0.00303962]
[1664647563741,1.41748379,19259.0,19258.0,0.00303962]
[1664647563964,1.72780279,19259.0,19258.0,0.00303962]
[1664647564182,0.04328383,19258.0,19257.0,0.00113962]
[1664647564330,1.46515618,19258.0,19257.0,0.00113962]
[1664647565046,1.48721032,19258.0,19257.0,0.00113962]
[1664647565261,0.70688541,19258.0,19257.0,0.00113962]
[1664647565858,0.57706941,19258.0,19257.0,0.00113962]
[1664647566645,0.63106941,19258.0,19257.0,0.00113962]
[1664647566971,0.98938841,19258.0,19257.0,0.00113962]
[1664647567183,0.63106941,19258.0,19257.0,0.00113962]
[1664647567441,0.11933797,19258.0,19257.0,0.00113962]
[1664647568034,0.06533797,19258.0,19257.0,0.00113962]
[1664647568254,0.06533797,19258.0,19257.0,0.11213962]
[1664647568713,0.12133797,19258.0,19257.0,0.11213962]
[1664647569266,0.12133797,19258.0,19257.0,0.00113962]
[1664647569953,0.06533797,19258.0,19257.0,0.00113962]
[1664647570729,0.12133797,19258.0,19257.0,0.00113962]
[1664647570952,0.12133797,19258.0,19257.0,0.11213962]
[1664647571166,0.28289347,19258.0,19257.0,0.35945862]
[1664647571399,0.43637314,19258.0,19257.0,0.00113962]
[1664647571663,0.07805414,19258.0,19257.0,0.00113962]
[1664647571856,0.02205414,19258.0,19257.0,0.00113962]
[1664647572670,0.10105414,19258.0,19257.0,0.00113962]
[1664647573353,0.10105414,19258.0,19257.0,0.42765538]
[1664647573503,0.10105414,19258.0,19257.0,0.01435638]
[1664647573718,0.10105414,19258.0,19257.0,0.35945862]
[1664647573948,0.02205414,19258.0,19257.0,0.00113962]
[1664647574658,0.08305414,19258.0,19257.0,0.00113962]
[1664647575104,0.21287014,19258.0,19257.0,0.00113962]
[1664647575549,0.08305414,19258.0,19257.0,0.35945862]
[1664647575799,0.08305414,19258.0,19257.0,0.45246578]
[1664647576031,0.02205414,19258.0,19257.0,0.45246578]
[1664647576733,0.09005414,19258.0,19257.0,0.09414678]
[1664647576966,0.09005414,19258.0,19257.0,0.00113962]
[1664647577191,0.09005414,19258.0,19256.0,0.69148762]
[1664647577412,0.09005414,19258.0,19257.0,0.5082268]
[1664647578115,0.02205414,19258.0,19257.0,0.5082268]
[1664647578338,0.02205414,19258.0,19257.0,0.67937139]
[1664647578838,0.09005414,19258.0,19257.0,0.67937139]
[1664647579542,0.09005414,19258.0,19257.0,0.32105239]
[1664647579992,0.02205414,19258.0,19257.0,0.32105239]
[1664647580171,0.02205414,19258.0,19257.0,0.67937139]
[1664647580819,0.09005414,19258.0,19257.0,0.5082268]
[1664647581491,0.21987014,19258.0,19257.0,0.5082268]
[1664647581946,0.51018914,19258.0,19257.0,0.1499078]
[1664647582165,0.15187014,19258.0,19257.0,0.1499078]
[1664647582754,0.21287014,19258.0,19257.0,0.1499078]
[1664647582931,0.21287014,19258.0,19257.0,0.358319]
[1664647583954,0.15187014,19258.0,19257.0,0.358319]
[1664647584625,0.21287014,19258.0,19257.0,0.358319]
[1664647585301,0.08305414,19258.0,19257.0,0.358319]
[1664647585963,0.15187014,19258.0,19256.0,1.02348406]
[1664647586395,0.15187014,19258.0,19256.0,1.13583247]
[1664647586633,0.21987014,19258.0,19257.0,0.358319]
[1664647586849,0.21987014,19258.0,19256.0,1.13583247]
[1664647587094,0.21987014,19258.0,19257.0,0.358319]
[1664647587536,0.57818914,19258.0,19256.0,1.02348406]
[1664647587803,0.21987014,19258.0,19256.0,1.02348406]
[1664647588020,0.15187014,19258.0,19256.0,1.02348406]
[1664647588482,0.15187014,19258.0,19257.0,0.358319]
[1664647588707,0.26315397,19258.0,19257.0,0.358319]
[1664647588952,0.26315397,19258.0,19256.0,1.02348406]
[1664647589169,0.26315397,19258.0,19257.0,0.358319]
[1664647589387,0.26315397,19258.0,19256.0,1.02348406]
[1664647589612,0.52278597,19258.0,19256.0,1.02348406]
[1664647589841,0.45478597,19258.0,19256.0,1.02348406]
[1664647590062,0.45478597,19258.0,19257.0,0.358319]
[1664647590361,0.04328383,19257.0,19256.0,0.38201762]
[1664647590577,0.40160283,19257.0,19256.0,0.38201762]
[1664647590812,0.04328383,19257.0,19256.0,0.38201762]
[1664647591291,0.06533797,19257.0,19256.0,0.38201762]
[1664647592762,0.14533797,19257.0,19256.0,0.38201762]
[1664647593195,0.14533797,19257.0,19256.0,0.74033662]
[1664647593434,0.14533797,19257.0,19256.0,0.38201762]
[1664647593652,0.14533797,19257.0,19256.0,0.74033662]
[1664647593875,0.14533797,19257.0,19256.0,0.38201762]
[1664647594123,0.06533797,19257.0,19256.0,0.74033662]
[1664647594345,0.06533797,19257.0,19256.0,0.38201762]
[1664647594801,0.14533797,19257.0,19256.0,0.38201762]
[1664647596422,0.17074317,19257.0,19256.0,0.38201762]
[1664647596699,0.82906217,19257.0,19256.0,0.25209262]
[1664647596922,0.54174317,19257.0,19256.0,0.25209262]
[1664647597159,0.24174317,19257.0,19256.0,0.25209262]
[1664647597634,0.54174317,19257.0,19256.0,0.25209262]
[1664647597867,0.90006217,19257.0,19256.0,0.12216762]
[1664647598091,0.17074317,19257.0,19256.0,0.12216762]
[1664647598584,0.82906217,19257.0,19256.0,0.0011]
[1664647598814,0.14533797,19257.0,19256.0,0.0011]
[1664647599326,0.14033797,19257.0,19256.0,0.0011]
[1664647599980,0.06033797,19257.0,19256.0,0.0011]
[1664647600206,0.10935357,19257.0,19256.0,0.0011]
[1664647600892,0.18935357,19257.0,19256.0,0.0011]
[1664647601114,0.48935357,19257.0,19256.0,0.0011]
[1664647601334,0.86281921,19257.0,19256.0,0.0011]
[1664647602016,0.40935357,19257.0,19256.0,0.0011]
[1664647602249,0.78281921,19257.0,19256.0,0.0011]
[1664647602952,0.86281921,19257.0,19256.0,0.0011]
[1664647603435,0.44033797,19257.0,19256.0,0.0011]
[1664647603666,0.10205414,19257.0,19256.0,0.05608]
[1664647603910,0.10205414,19257.0,19256.0,0.465439]
[1664647604138,0.02205414,19257.0,19256.0,0.470419]
[1664647604382,0.02205414,19257.0,19256.0,0.5354741]
[1664647604631,0.02205414,19257.0,19256.0,0.5404541]
[1664647604847,0.09005414,19257.0,19256.0,0.5404541]
[1664647605294,0.09005414,19257.0,19256.0,0.4294541]
[1664647605534,0.09005414,19257.0,19256.0,0.0711351]
[1664647605733,0.09005414,19257.0,19256.0,0.359419]
[1664647605985,0.12833797,19257.0,19256.0,0.0011]
[1664647606238,0.06033797,19257.0,19256.0,0.0011]
[1664647606464,0.06033797,19257.0,19256.0,0.359419]
[1664647606942,0.12833797,19257.0,19256.0,0.359419]
[1664647607216,1.01122221,19257.0,19256.0,0.0011]
[1664647607429,1.38468785,19257.0,19256.0,0.0011]
[1664647607646,1.32636885,19257.0,19256.0,0.0011]
[1664647607862,0.64006941,19257.0,19256.0,0.0011]
[1664647608533,0.57206941,19257.0,19256.0,0.0011]
[1664647608983,0.63106941,19257.0,19256.0,0.0011]
[1664647610170,0.57206941,19257.0,19256.0,0.0011]
[1664647610806,0.64006941,19257.0,19256.0,0.0011]
[1664647612148,0.57206941,19257.0,19256.0,0.0011]
[1664647612829,0.99838841,19257.0,19256.0,0.0011]
[1664647613054,0.12833797,19257.0,19256.0,0.359419]
[1664647613535,0.12833797,19257.0,19256.0,0.0011]
[1664647613996,0.06033797,19257.0,19256.0,0.0011]
[1664647614211,0.06033797,19257.0,19256.0,0.359419]
[1664647614435,0.06033797,19257.0,19256.0,0.4935222]
[1664647614711,0.06033797,19257.0,19256.0,0.4885422]
[1664647614712,0.02205414,19257.0,19256.0,0.4885422]
[1664647614934,0.09005414,19257.0,19256.0,0.0242032]
[1664647615641,0.09005414,19257.0,19256.0,0.4325222]
[1664647615885,0.09005414,19257.0,19256.0,0.3825222]
[1664647616115,0.02205414,19257.0,19256.0,0.3825222]
[1664647616918,0.09705414,19257.0,19256.0,0.4325222]
[1664647617141,0.09705414,19257.0,19256.0,0.99425364]
[1664647618028,0.02205414,19257.0,19256.0,0.99425364]
[1664647618498,0.02205414,19257.0,19256.0,0.63593464]
[1664647618912,0.09705414,19257.0,19256.0,0.94425364]
[1664647620078,0.02205414,19257.0,19256.0,0.94425364]
[1664647620302,0.02205414,19257.0,19256.0,0.89425364]
[1664647620529,0.02205414,19257.0,19256.0,0.53593464]
[1664647620995,0.10205414,19257.0,19256.0,0.89425364]
[1664647622210,0.02205414,19257.0,19256.0,0.89425364]
[1664647622501,0.02205414,19257.0,19256.0,0.87115044]
[1664647622947,0.02205414,19257.0,19256.0,0.359419]
[1664647622948,0.14033797,19257.0,19256.0,0.359419]
[1664647623204,0.14033797,19257.0,19256.0,0.0011]
[1664647624325,0.06033797,19257.0,19256.0,0.0011]
[1664647625026,0.14033797,19257.0,19256.0,0.0011]
[1664647626210,0.06033797,19257.0,19256.0,0.0011]
[1664647626687,0.06033797,19257.0,19256.0,0.359419]
[1664647626904,0.14033797,19257.0,19256.0,0.359419]
[1664647627821,0.14033797,19257.0,19256.0,0.00099317]
[1664647627822,0.49865697,19257.0,19256.0,0.00099317]
[1664647628265,0.06033797,19257.0,19256.0,0.00099317]
[1664647628489,0.14670003,19257.0,19256.0,0.00099317]
[1664647629006,0.22670003,19257.0,19256.0,0.00099317]
[1664647629227,0.14033797,19257.0,19256.0,0.00099317]
[1664647630137,0.06033797,19257.0,19256.0,0.00099317]
[1664647631054,0.14033797,19257.0,19256.0,0.00099317]
[1664647632190,0.06033797,19257.0,19256.0,0.00099317]
[1664647633124,0.14033797,19257.0,19256.0,0.00099317]
[1664647634262,0.06033797,19257.0,19256.0,0.00099317]
[1664647634937,0.14033797,19257.0,19256.0,0.00099317]
[1664647635220,0.10205414,19257.0,19256.0,0.52439109]
[1664647635450,0.10205414,19257.0,19256.0,0.16607209]
[1664647635672,0.10205414,19257.0,19256.0,0.52439109]
[1664647635917,0.10205414,19257.0,19256.0,0.51941109]
[1664647636147,0.10205414,19257.0,19256.0,0.52439109]
[1664647636390,0.02205414,19257.0,19256.0,0.52439109]
[1664647637095,0.10205414,19257.0,19256.0,0.52439109]
[1664647637770,0.10205414,19257.0,19256.0,0.46941109]
[1664647638055,0.10205414,19257.0,19256.0,0.35931217]
[1664647638284,0.02205414,19257.0,19256.0,0.00099317]
[1664647638731,0.02205414,19257.0,19256.0,0.35931217]
[1664647638954,0.10205414,19257.0,19256.0,0.35931217]
[1664647639179,0.46037314,19257.0,19256.0,0.00099317]
[1664647639410,0.10205414,19257.0,19256.0,0.00099317]
[1664647639892,0.10205414,19257.0,19256.0,0.35931217]
[1664647640361,0.10205414,19257.0,19256.0,0.00099317]
[1664647640362,0.52356607,19257.0,19256.0,0.00099317]
[1664647640622,1.19703171,19257.0,19256.0,0.00099317]
[1664647641103,0.60071271,19257.0,19256.0,0.00099317]
[1664647641334,0.90071271,19257.0,19256.0,0.00099317]
[1664647642076,0.60071271,19257.0,19256.0,0.00099317]
[1664647642308,0.90071271,19257.0,19256.0,0.00099317]
[1664647642536,1.25903171,19257.0,19256.0,0.00099317]
[1664647642759,1.19703171,19257.0,19256.0,0.00099317]
[1664647642990,1.26803171,19257.0,19256.0,0.00099317]
[1664647643432,0.90971271,19257.0,19256.0,0.00099317]
[1664647644346,0.83871271,19257.0,19256.0,0.00099317]
[1664647645025,0.89971271,19257.0,19256.0,0.00099317]
[1664647645247,1.25803171,19257.0,19256.0,0.00099317]
[1664647645727,0.52624707,19257.0,19256.0,0.00099317]
[1664647645946,0.89971271,19257.0,19256.0,0.00099317]
[1664647646170,0.83871271,19257.0,19256.0,0.00099317]
[1664647647082,0.89971271,19257.0,19256.0,0.00099317]
[1664647647980,1.25803171,19257.0,19256.0,0.00099317]
[1664647648182,0.83871271,19257.0,19256.0,0.00099317]
[1664647648966,1.25203171,19257.0,19256.0,0.00099317]
[1664647649168,0.89371271,19257.0,19256.0,0.00099317]
[1664647650219,1.35044415,19257.0,19256.0,0.00099317]
[1664647650370,1.91360248,19257.0,19256.0,0.00099317]
[1664647650601,1.91360248,19257.0,19254.0,0.0031]
[1664647650602,0.03828383,19255.0,19254.0,0.0031]
[1664647650815,1.52663829,19255.0,19254.0,0.0031]
[1664647651042,1.6826474,19255.0,19254.0,0.0031]
[1664647651271,2.35025654,19255.0,19254.0,0.0031]
[1664647651505,3.07828898,19255.0,19254.0,0.0031]
[1664647652029,3.38012034,19255.0,19254.0,0.0031]
[1664647652257,3.38012034,19255.0,19250.0,0.01]
[1664647652258,0.42189067,19251.0,19250.0,0.01]
[1664647652513,2.1696795,19251.0,19250.0,0.01]
[1664647652754,1.20858101,19251.0,19250.0,0.005]
[1664647653001,1.68869713,19251.0,19250.0,0.01]
[1664647653210,1.87055284,19251.0,19250.0,0.01]
[1664647653441,1.87055284,19251.0,19244.0,0.00398692]
[1664647653442,0.03672315,19245.0,19244.0,0.00398692]
[1664647653668,0.03672315,19245.0,19241.0,0.0031]
[1664647653669,0.03672315,19242.0,19241.0,0.0031]
[1664647653915,0.54845459,19242.0,19241.0,0.0031]
[1664647654148,1.15646121,19242.0,19241.0,0.0081]
[1664647654390,2.02827538,19242.0,19241.0,0.0081]
[1664647654873,1.82343605,19242.0,19241.0,0.0081]
[1664647655123,0.42039676,19239.0,19238.0,0.01015999]
[1664647655380,0.42039676,19239.0,19232.0,0.00582366]
[1664647655381,0.03672315,19233.0,19232.0,0.00582366]
[1664647655649,0.75329392,19233.0,19232.0,0.00582366]
[1664647655895,0.54845459,19233.0,19232.0,0.01082366]
[1664647656170,0.02672315,19232.0,19231.0,0.82382366]
[1664647656414,0.02672315,19231.0,19230.0,20.0]
[1664647656900,0.79929392,19231.0,19230.0,20.0]
[1664647657130,0.60185459,19231.0,19230.0,20.0]
[1664647657368,1.80567359,19231.0,19230.0,1.52130543]
[1664647657626,1.80567359,19231.0,19222.0,0.00372187]
[1664647657627,0.02672315,19223.0,19222.0,0.00372187]
[1664647657865,0.02672315,19223.0,19218.0,0.0335554]
[1664647657866,0.02672315,19220.0,19219.0,0.00258]
[1664647658116,0.76099277,19220.0,19218.0,0.0335554]
[1664647658364,0.5642804,19220.0,19219.0,0.05]
[1664647658596,0.02672315,19217.0,19216.0,0.0845632]
[1664647658833,0.05321,19221.0,19218.0,0.1]
[1664647659064,0.05321,19221.0,19219.0,0.358319]
[1664647659065,0.079,19220.0,19219.0,0.358319]
[1664647659314,0.59073144,19220.0,19219.0,0.358319]
[1664647659553,0.079,19220.0,19218.0,1.15]
[1664647659786,0.05321,19221.0,19220.0,0.1]
[1664647660025,0.98175586,19229.0,19220.0,3.47005044]
[1664647660274,0.98175586,19229.0,19226.0,1.4]
[1664647660511,0.98175586,19229.0,19228.0,0.1]
[1664647660801,0.98175586,19229.0,19228.0,0.71173144]
[1664647660802,0.97675586,19229.0,19228.0,0.71173144]
[1664647661039,0.97675586,19229.0,19228.0,1.71436034]
[1664647661286,1.586e-05,19229.0,19228.0,1.51403832]
[1664647661526,0.2417257,19238.0,19235.0,0.1]
[1664647661761,0.2417257,19238.0,19235.0,0.085]
[1664647661762,0.51173144,19237.0,19235.0,0.085]
[1664647662492,0.67249085,19241.0,19236.0,0.1]
[1664647662730,0.87005044,19240.0,19236.0,0.1]
[1664647662963,0.87005044,19239.0,19236.0,0.065]
[1664647663208,0.87005044,19238.0,19236.0,0.065]
[1664647663478,0.87005044,19237.0,19236.0,0.065]
[1664647663701,0.51173144,19237.0,19236.0,0.065]
[1664647663935,0.358319,19237.0,19236.0,0.065]
[1664647664166,0.52173144,19239.0,19236.0,0.358319]
[1664647664399,0.358319,19238.0,19237.0,0.05]
[1664647664627,0.358319,19238.0,19235.0,0.26741767]
[1664647664850,0.52173144,19239.0,19235.0,0.26741767]
[1664647665087,1.12488977,19238.0,19237.0,0.077]
[1664647665321,0.87005044,19238.0,19237.0,0.077]
[1664647665560,0.358319,19238.0,19237.0,0.077]
[1664647666030,0.01,19239.0,19237.0,0.435319]
[1664647666267,0.01,19239.0,19238.0,0.1]
[1664647666495,0.01,19239.0,19238.0,0.358319]
[1664647666740,0.01,19239.0,19237.0,0.20413309]
[1664647666968,0.01,19239.0,19238.0,0.517319]
[1664647667214,0.01,19239.0,19238.0,1.53464932]
[1664647667422,0.01,19239.0,19238.0,1.27633032]
[1664647667660,0.01,19239.0,19238.0,0.77073144]
[1664647667892,0.01,19239.0,19238.0,0.87073144]
[1664647668123,0.01,19239.0,19238.0,1.74213577]
[1664647668124,0.03205414,19239.0,19238.0,1.74213577]
[1664647668856,0.03205414,19239.0,19238.0,1.68313577]
[1664647669088,0.03205414,19239.0,19238.0,1.74213577]
[1664647669545,0.02705414,19239.0,19238.0,1.74213577]
[1664647670238,0.02705414,19239.0,19238.0,1.47564932]
[1664647670466,0.02705414,19239.0,19238.0,0.81173144]
[1664647670696,0.02705414,19239.0,19238.0,1.17005044]
[1664647670951,0.02705414,19239.0,19238.0,1.22105044]
[1664647671648,0.02705414,19239.0,19238.0,1.62664932]
[1664647671881,0.02705414,19239.0,19238.0,1.91271436]
[1664647672380,0.02705414,19239.0,19238.0,1.86171436]
[1664647672617,4.14e-06,19239.0,19238.0,1.86171436]
[1664647673076,4.14e-06,19239.0,19238.0,3.51671436]
[1664647673308,4.14e-06,19239.0,19238.0,4.25671436]
[1664647673555,4.14e-06,19239.0,19238.0,3.65671436]
[1664647673782,4.14e-06,19239.0,19238.0,4.25671436]
[1664647674251,4.14e-06,19239.0,19238.0,4.20171436]
[1664647674484,4.14e-06,19239.0,19238.0,5.58538482]
[1664647674756,0.18901472,19249.0,19245.0,0.1]
[1664647675058,0.78967339,19256.0,19247.0,1.4]
[1664647675059,0.19426492,19254.0,19247.0,1.4]
[1664647675283,0.51173144,19253.0,19248.0,0.76391788]
[1664647675520,0.51673144,19253.0,19250.0,0.1]
[1664647675762,0.51173144,19252.0,19251.0,0.129961]
[1664647676286,0.51673144,19253.0,19251.0,0.129961]